fUSD/lending_fUSD_20241106
["ID","MTS","AMOUNT","RATE_DAILY","PERIOD"]
[341483163,1730920329324,-828.15,0.0003178,2]
[341483164,1730920329335,-948.69,0.0003178,2]
[341483165,1730920329346,-500.0,0.0003178,2]
[341483166,1730920329358,-712.2,0.0003178,2]
[341483167,1730920329368,-1961.14,0.0003178,2]
[341483168,1730920329379,-2553.79,0.0003178,2]
[341483169,1730920329390,-933.76,0.0003178,2]
[341483170,1730920329401,-619.47,0.0003178,2]
[341483171,1730920329411,-1552.17,0.0003178,2]
[341483172,1730920329422,-985.31,0.0003178,2]
[341483173,1730920329433,-852.71,0.0003178,2]
[341483174,1730920329444,-500.0,0.0003178,2]
[341483175,1730920329455,-1319.54,0.0003178,2]
[341483176,1730920329466,-201.220383,0.0003178,7]
[341483177,1730920329478,-544.73,0.0003178,2]
[341483178,1730920329490,-1040.45,0.0003178,2]
[341483179,1730920329501,-201.220383,0.0003178,7]
[341483180,1730920329512,-1047.75,0.0003178,2]
[341483181,1730920329524,-809.24,0.0003178,2]
[341483182,1730920329535,-508.7,0.0003178,2]
[341483183,1730920329546,-1768.07,0.0003178,2]
[341483184,1730920329557,-3662.42,0.0003178,2]
[341483185,1730920329568,-626.81,0.0003178,2]
[341483186,1730920329579,-543.01,0.0003178,2]
[341483187,1730920329591,-706.05,0.0003178,2]
[341483188,1730920329601,-280.903323,0.0003178,7]
[341483189,1730920329611,-651.62,0.0003178,2]
[341483190,1730920329622,-2251.89,0.0003178,2]
[341483191,1730920329634,-732.87,0.0003178,2]
[341483192,1730920329646,-500.0,0.0003178,2]
[341483193,1730920329658,-280.903323,0.0003178,7]
[341483194,1730920329668,-151.0,0.0003178,7]
[341483195,1730920329679,-730.51,0.0003178,2]
[341483196,1730920329692,-2703.76,0.0003178,2]
[341483197,1730920329702,-601.73,0.0003178,2]
[341483198,1730920329714,-759.2,0.0003178,2]
[341483199,1730920329726,-1846.6,0.0003178,2]
[341483200,1730920329736,-4472.046259,0.0003178,7]
[341483201,1730920329748,-2388.47,0.0003178,2]
[341483202,1730920329758,-607.85021248,0.0003178,2]
[341483203,1730920329769,-4472.046259,0.0003178,7]
[341483204,1730920329781,-217.442755,0.0003178,2]
[341483205,1730920329792,-1087.87,0.0003178,2]
[341483206,1730920329802,-154.520211,0.0003178,2]
[341483207,1730920329813,-228.879307,0.0003178,2]
[341483208,1730920329823,-1027.83,0.0003178,2]
[341483209,1730920329834,-934.72,0.0003178,2]
[341483210,1730920329844,-342.74837502,0.0003178,2]
[341483211,1730920329855,-984.02,0.0003178,2]
[341483212,1730920329866,-151.0,0.0003178,7]
[341483213,1730920329877,-500.0,0.0003178,2]
[341483214,1730920329889,-2654.17,0.0003178,2]
[341483215,1730920329899,-763.29,0.0003178,2]
[341483216,1730920329910,-2923.01,0.0003178,2]
[341483217,1730920329921,-500.0,0.0003178,2]
[341483218,1730920329934,-1057.64,0.0003178,2]
[341483219,1730920329944,-500.0,0.0003178,2]
[341483220,1730920329955,-522.44176567,0.0003178,2]
[341483221,1730920329966,-248.75138673,0.0003178,2]
[341483222,1730920329982,-251.24861327,0.0003178,2]
[341483223,1730920329993,-669.62,0.0003178,2]
[341483224,1730920330004,-718.6,0.0003178,2]
[341483225,1730920330015,-500.0,0.0003178,2]
[341483226,1730920330026,-3084.36,0.0003178,2]
[341483227,1730920330037,-727.89,0.0003178,2]
[341483228,1730920330048,-1861.65,0.0003178,2]
[341483229,1730920330059,-9910.8285661,0.0003178,2]
[341483231,1730920515232,161.93,0.00015342,2]
[341483234,1730921109009,70000.0,0.00016,2]
[341483235,1730921109035,37524.68594715,0.00016,2]
[341483236,1730921109059,731548.83965613,0.00016,2]
[341483237,1730921109088,9088268.76859085,0.00016,2]
[341483238,1730921144199,-1801.74,0.00023552,2]
[341483239,1730921144221,-226.41735,0.00024357,2]
[341483240,1730921144245,-171.14,0.0002448,2]
[341483241,1730921144267,-2171.03,0.000249,2]
[341483242,1730921144290,-250.0,0.00024914,2]
[341483243,1730921144314,-500.0,0.00024932,2]
[341483244,1730921144336,-50000.0,0.0002494,2]
[341483245,1730921144362,-812.06,0.0002494,2]
[341483246,1730921144384,-738.0,0.00024978,2]
[341483247,1730921144407,-150.99,0.00024979,2]
[341483248,1730921144428,-219.7,0.00024979,2]
[341483249,1730921144455,-26156.56483018,0.00025,2]
[341483250,1730921144478,-1017.62923734,0.00025,60]
[341483251,1730921153547,15012.0,0.00015,10]
[341483252,1730921154091,166330.74970065,0.0001892,2]
[341483253,1730921155794,8758.51,0.00024848,2]
[341483254,1730921159208,1000.0,0.00025,60]
[341483255,1730921162779,8809.41452889,0.00025,2]
[341483256,1730921191435,626.43524688,0.00024,2]
[341483257,1730921200809,4093.75584704,0.00023999,2]
[341483259,1730921204935,164.08,0.00015342,2]
[341483261,1730921220370,3379.16969439,0.00015,14]
[341483262,1730921225142,-403.05634459,0.00025218,2]
[341483263,1730921228126,-368.65365541,0.00025218,2]
[341483264,1730921228148,-8758.51,0.00025247,2]
[341483265,1730921228168,-200.0,0.00025253,2]
[341483266,1730921228189,-250.0,0.00025318,2]
[341483267,1730921228208,-1597.14,0.00025319,2]
[341483268,1730921228230,-48100.09359655,0.00025319,2]
[341483269,1730921228250,-300.0,0.00025341,2]
[341483270,1730921228271,-250.0,0.00025359,2]
[341483271,1730921228292,-9044.28,0.00025361,2]
[341483272,1730921228315,-2109.89,0.00025371,2]
[341483273,1730921228335,-1077.4,0.00025372,2]
[341483274,1730921228361,-520.51,0.0002538,4]
[341483275,1730921228382,-359.65,0.000254,120]
[341483276,1730921228402,-2751.0,0.00025427,2]
[341483277,1730921228424,-167.22,0.00025427,2]
[341483278,1730921228444,-1068.66,0.00025432,2]
[341483279,1730921228466,-23900.0,0.0002547,2]
[341483280,1730921228486,-150.0,0.00025492,2]
[341483281,1730921228508,-928.0,0.00025514,2]
[341483282,1730921228528,-200.0,0.00025554,2]
[341483283,1730921228548,-1169.84,0.00025583,2]
[341483284,1730921228570,-391.3,0.00025619,30]
[341483285,1730921228591,-8758.51,0.00025646,2]
[341483286,1730921228616,-2518.0,0.00025723,2]
[341483287,1730921228636,-244.01,0.0002575,2]
[341483288,1730921228658,-171.14,0.00025768,2]
[341483289,1730921228680,-1801.74,0.00025816,2]
[341483290,1730921228702,-157.14,0.00025977,2]
[341483291,1730921228722,-3741.14008713,0.00026,2]
[341483292,1730921228742,-4464.42,0.00026026,2]
[341483293,1730921228765,-8758.51,0.00026046,2]
[341483294,1730921228786,-5571.0,0.00026054,2]
[341483295,1730921228807,-150.99,0.00026129,2]
[341483296,1730921228829,-2543.12,0.00026181,2]
[341483297,1730921228853,-187.88,0.00026181,8]
[341483298,1730921228874,-403.95,0.00026218,2]
[341483299,1730921228895,-166.93,0.00026326,2]
[341483300,1730921228921,-9828.78976734,0.000264,2]
[341483301,1730921228944,-8758.51,0.00026445,2]
[341483302,1730921228964,-504.87,0.00026529,2]
[341483303,1730921228986,-1987.95285852,0.00026623,2]
[341483304,1730921229006,-307.69,0.00026624,2]
[341483305,1730921229028,-150.0,0.00026707,2]
[341483306,1730921229051,-8758.51,0.00026844,2]
[341483307,1730921229075,-351.72,0.00026941,120]
[341483308,1730921229096,-800.0,0.00026986,120]
[341483309,1730921229118,-800.0,0.00026986,120]
[341483310,1730921229138,-5243.08,0.00027,120]
[341483311,1730921229159,-163.2,0.00027003,2]
[341483312,1730921229180,-171.14,0.00027056,2]
[341483313,1730921229201,-8758.51,0.00027243,2]
[341483314,1730921229224,-337.58,0.00027292,2]
[341483315,1730921229245,-195.30146309,0.00027297,2]
[341483316,1730921229268,-337.58,0.00027307,2]
[341483317,1730921229291,-337.58,0.00027321,2]
[341483318,1730921229326,-337.58,0.00027335,2]
[341483319,1730921229350,-337.58,0.0002735,2]
[341483320,1730921229373,-337.58,0.00027364,2]
[341483321,1730921229397,-337.58,0.00027379,2]
[341483322,1730921229419,-337.58,0.00027393,2]
[341483323,1730921229443,-523.15679669,0.00027396,2]
[341483324,1730921229464,-649.73524066,0.00027397,2]
[341483325,1730921229484,-527.00093883,0.00027397,2]
[341483326,1730921229505,-500.0,0.00027397,2]
[341483327,1730921229526,-500.0,0.00027397,2]
[341483328,1730921229546,-498.58301614,0.00027397,2]
[341483329,1730921229569,-500.0,0.00027397,2]
[341483330,1730921229590,-520.58846103,0.00027397,2]
[341483331,1730921229612,-241.69481322,0.00027397,2]
[341483332,1730921229643,-500.0,0.00027397,2]
[341483333,1730921229678,-223.00202428,0.00027397,2]
[341483334,1730921229700,-503.60494228,0.00027397,2]
[341483335,1730921229721,-500.0,0.00027397,2]
[341483336,1730921229744,-508.29433376,0.00027397,2]
[341483337,1730921229765,-500.0552075,0.00027397,2]
[341483338,1730921229786,-503.50523344,0.00027397,2]
[341483339,1730921229806,-519.42585419,0.00027397,2]
[341483340,1730921229828,-506.97181575,0.00027397,2]
[341483341,1730921229851,-500.0,0.00027397,2]
[341483342,1730921229873,-510.63856146,0.00027397,2]
[341483343,1730921229899,-500.0,0.00027397,2]
[341483344,1730921229922,-500.0,0.00027397,2]
[341483345,1730921229944,-500.0,0.00027397,2]
[341483346,1730921229966,-598.71325577,0.00027397,2]
[341483347,1730921229990,-500.0,0.00027397,2]
[341483348,1730921230012,-965.39,0.00027397,2]
[341483349,1730921230034,-405.357663,0.00027397,2]
[341483350,1730921230055,-507.84384841,0.00027397,2]
[341483351,1730921230077,-500.0,0.00027397,2]
[341483352,1730921230098,-500.0,0.00027397,2]
[341483353,1730921230119,-502.69471845,0.00027397,2]
[341483354,1730921230140,-500.0,0.00027397,2]
[341483355,1730921230162,-502.56049554,0.00027397,2]
[341483356,1730921230183,-519.89083607,0.00027397,2]
[341483357,1730921230203,-500.0,0.00027397,2]
[341483358,1730921230223,-500.0,0.00027397,2]
[341483359,1730921230245,-555.66376628,0.00027397,2]
[341483360,1730921230266,-509.69834924,0.00027397,2]
[341483361,1730921230287,-500.0,0.00027397,2]
[341483362,1730921230308,-500.0,0.00027397,2]
[341483363,1730921230329,-500.0,0.00027397,2]
[341483364,1730921230350,-500.0,0.00027397,2]
[341483365,1730921230371,-500.0,0.00027397,2]
[341483366,1730921230391,-500.0,0.00027397,2]
[341483367,1730921230412,-500.0,0.00027397,2]
[341483368,1730921230432,-518.64220621,0.00027397,2]
[341483369,1730921230452,-515.38324214,0.00027397,2]
[341483370,1730921230472,-521.95036503,0.00027397,2]
[341483371,1730921230492,-500.0,0.00027397,2]
[341483372,1730921230728,-500.0,0.00027397,2]
[341483373,1730921230749,-500.0,0.00027397,2]
[341483374,1730921230770,-500.0,0.00027397,2]
[341483375,1730921230790,-500.0,0.00027397,2]
[341483376,1730921230810,-500.0,0.00027397,2]
[341483377,1730921230831,-500.0,0.00027397,2]
[341483378,1730921230851,-500.0,0.00027397,2]
[341483379,1730921230871,-518.97278949,0.00027397,2]
[341483380,1730921230890,-500.0,0.00027397,2]
[341483381,1730921230915,-500.0,0.00027397,2]
[341483382,1730921230935,-500.0,0.00027397,2]
[341483383,1730921230957,-567.95,0.00027397,2]
[341483384,1730921230982,-558.91,0.00027397,2]
[341483385,1730921231002,-500.0,0.00027397,2]
[341483386,1730921231027,-500.0,0.00027397,2]
[341483387,1730921231047,-500.0,0.00027397,2]
[341483388,1730921231066,-500.0,0.00027397,2]
[341483389,1730921231086,-500.0,0.00027397,2]
[341483390,1730921231108,-500.0,0.00027397,2]
[341483391,1730921231132,-648.12,0.00027397,2]
[341483392,1730921231153,-500.0,0.00027397,2]
[341483393,1730921231173,-500.0,0.00027397,2]
[341483394,1730921231193,-500.0,0.00027397,2]
[341483395,1730921231216,-500.0,0.00027397,2]
[341483396,1730921231237,-1325.2,0.00027397,2]
[341483397,1730921231258,-500.0,0.00027397,2]
[341483398,1730921231278,-500.0,0.00027397,2]
[341483399,1730921231299,-500.0,0.00027397,2]
[341483400,1730921231319,-500.0,0.00027397,2]
[341483401,1730921231338,-500.0,0.00027397,2]
[341483402,1730921231361,-500.0,0.00027397,2]
[341483403,1730921231382,-500.0,0.00027397,2]
[341483404,1730921231402,-502.09325964,0.00027397,2]
[341483405,1730921231422,-501.38030061,0.00027397,2]
[341483406,1730921231443,-500.0,0.00027397,2]
[341483407,1730921231464,-555.39991855,0.00027397,2]
[341483408,1730921231484,-500.0,0.00027397,2]
[341483409,1730921231504,-515.83253765,0.00027397,2]
[341483410,1730921231525,-722.55,0.00027397,2]
[341483411,1730921231546,-1016.65,0.00027397,2]
[341483412,1730921231566,-511.38886886,0.00027397,2]
[341483413,1730921231587,-1000.0,0.00027397,10]
[341483414,1730921231610,-368.76402748,0.00027397,2]
[341483415,1730921231629,-500.0,0.00027397,2]
[341483416,1730921231649,-506.5787344,0.00027397,2]
[341483417,1730921231669,-530.40392172,0.00027397,2]
[341483418,1730921231689,-500.0,0.00027397,2]
[341483419,1730921231709,-500.0,0.00027397,2]
[341483420,1730921231729,-500.0,0.00027397,2]
[341483421,1730921231749,-500.0,0.00027397,2]
[341483422,1730921231768,-500.0,0.00027397,2]
[341483423,1730921231788,-500.0,0.00027397,2]
[341483424,1730921231808,-517.68961052,0.00027397,2]
[341483425,1730921231828,-500.0,0.00027397,2]
[341483426,1730921231848,-512.19104869,0.00027397,2]
[341483427,1730921231872,-500.0,0.00027397,2]
[341483428,1730921231893,-580.63,0.00027397,2]
[341483429,1730921231917,-519.62623228,0.00027397,2]
[341483430,1730921231938,-500.0,0.00027397,2]
[341483431,1730921231958,-500.0,0.00027397,2]
[341483432,1730921231978,-523.14408842,0.00027397,2]
[341483433,1730921231998,-520.07968182,0.00027397,2]
[341483434,1730921232018,-512.39861021,0.00027397,2]
[341483435,1730921232038,-500.0,0.00027397,2]
[341483436,1730921232056,-500.0,0.00027397,2]
[341483437,1730921232076,-527.87640947,0.00027397,2]
[341483438,1730921232096,-500.0,0.00027397,2]
[341483439,1730921232120,-500.0,0.00027397,2]
[341483440,1730921232140,-500.0,0.00027397,2]
[341483441,1730921232160,-500.0,0.00027397,2]
[341483442,1730921232182,-630.1501116,0.00027397,2]
[341483443,1730921232202,-500.0,0.00027397,2]
[341483444,1730921232222,-500.0,0.00027397,2]
[341483445,1730921232243,-495.01803224,0.00027397,2]
[341483446,1730921232263,-508.9434154,0.00027397,2]
[341483447,1730921232283,-500.0,0.00027397,2]
[341483448,1730921232305,-500.0,0.00027397,2]
[341483449,1730921232326,-500.0,0.00027397,2]
[341483450,1730921232347,-563.76350072,0.00027397,2]
[341483451,1730921232371,-500.0,0.00027397,2]
[341483452,1730921232393,-500.0,0.00027397,2]
[341483453,1730921232414,-500.0,0.00027397,2]
[341483454,1730921232435,-588.85,0.00027397,2]
[341483455,1730921232456,-500.0,0.00027397,2]
[341483456,1730921232477,-500.0,0.00027397,2]
[341483457,1730921232498,-500.0,0.00027397,2]
[341483458,1730921232518,-500.0,0.00027397,2]
[341483459,1730921232540,-796.4,0.00027397,2]
[341483460,1730921232561,-500.0,0.00027397,2]
[341483461,1730921232582,-500.0,0.00027397,2]
[341483462,1730921232603,-500.0,0.00027397,2]
[341483463,1730921232624,-373.78168563,0.00027397,2]
[341483464,1730921232645,-500.0,0.00027397,2]
[341483465,1730921232665,-500.0,0.00027397,2]
[341483466,1730921232686,-500.0,0.00027397,2]
[341483467,1730921232706,-500.0,0.00027397,2]
[341483468,1730921232726,-500.0,0.00027397,2]
[341483469,1730921232747,-500.0,0.00027397,2]
[341483470,1730921232766,-506.9304037,0.00027397,2]
[341483471,1730921232787,-500.0,0.00027397,2]
[341483472,1730921232807,-501.15522978,0.00027397,2]
[341483473,1730921232827,-500.0,0.00027397,2]
[341483474,1730921232847,-500.0,0.00027397,2]
[341483475,1730921232869,-500.0,0.00027397,2]
[341483476,1730921232890,-500.0,0.00027397,2]
[341483477,1730921232916,-500.0,0.00027397,2]
[341483478,1730921232937,-500.0,0.00027397,2]
[341483479,1730921232958,-500.0,0.00027397,2]
[341483480,1730921232977,-500.0,0.00027397,2]
[341483481,1730921232999,-500.0,0.00027397,2]
[341483482,1730921233019,-500.0,0.00027397,2]
[341483483,1730921233107,-179.14147895,0.00027397,2]
[341483484,1730921233129,-500.0,0.00027397,2]
[341483485,1730921233150,-500.0,0.00027397,2]
[341483486,1730921233170,-500.0,0.00027397,2]
[341483487,1730921233190,-500.0,0.00027397,2]
[341483488,1730921233209,-510.13365584,0.00027397,2]
[341483489,1730921233229,-500.0,0.00027397,2]
[341483490,1730921233249,-500.0,0.00027397,2]
[341483491,1730921233270,-525.71,0.00027397,2]
[341483492,1730921233291,-500.0,0.00027397,2]
[341483493,1730921233311,-500.0,0.00027397,2]
[341483494,1730921233332,-500.0,0.00027397,2]
[341483495,1730921233354,-500.0,0.00027397,2]
[341483496,1730921233374,-314.68624747,0.00027397,2]
[341483497,1730921233395,-500.0,0.00027397,2]
[341483498,1730921233416,-500.0,0.00027397,2]
[341483499,1730921233436,-500.0,0.00027397,2]
[341483500,1730921233458,-621.68,0.00027397,2]
[341483501,1730921233478,-500.0,0.00027397,2]
[341483502,1730921233499,-512.74965946,0.00027397,2]
[341483503,1730921233521,-500.0,0.00027397,2]
[341483504,1730921233542,-500.0,0.00027397,2]
[341483505,1730921233562,-254.62106101,0.00027397,2]
[341483506,1730921233583,-500.0,0.00027397,2]
[341483507,1730921233606,-1037.34,0.00027397,2]
[341483508,1730921233628,-500.0,0.00027397,2]
[341483509,1730921233649,-1052.08,0.00027397,2]
[341483510,1730921233670,-500.0,0.00027397,2]
[341483511,1730921233691,-500.0,0.00027397,2]
[341483512,1730921233712,-823.97,0.00027397,2]
[341483513,1730921233732,-500.0,0.00027397,2]
[341483514,1730921233753,-500.0,0.00027397,2]
[341483515,1730921233775,-500.0,0.00027397,2]
[341483516,1730921233797,-500.0,0.00027397,2]
[341483517,1730921233817,-500.0,0.00027397,2]
[341483518,1730921233840,-1586.78,0.00027397,2]
[341483519,1730921233863,-500.0,0.00027397,2]
[341483520,1730921233884,-500.0,0.00027397,2]
[341483521,1730921233908,-500.0,0.00027397,2]
[341483522,1730921233929,-250.0,0.00027397,2]
[341483523,1730921233951,-502.00265886,0.00027397,2]
[341483524,1730921233972,-500.0,0.00027397,2]
[341483525,1730921233997,-500.0,0.00027397,2]
[341483526,1730921234018,-500.0,0.00027397,2]
[341483527,1730921234038,-500.0,0.00027397,2]
[341483528,1730921234060,-500.0,0.00027397,2]
[341483529,1730921234082,-500.0,0.00027397,2]
[341483530,1730921234104,-212.62205351,0.00027397,2]
[341483531,1730921234125,-1670.0,0.00027397,2]
[341483532,1730921234146,-500.0,0.00027397,2]
[341483533,1730921234166,-500.0,0.00027397,2]
[341483534,1730921234188,-608.94,0.00027397,2]
[341483535,1730921234209,-500.0,0.00027397,2]
[341483536,1730921234231,-500.0,0.00027397,2]
[341483537,1730921234252,-500.0,0.00027397,2]
[341483538,1730921234273,-1227.75,0.00027397,2]
[341483539,1730921234293,-500.0,0.00027397,2]
[341483540,1730921234314,-500.0,0.00027397,2]
[341483541,1730921234336,-500.0,0.00027397,2]
[341483542,1730921234361,-500.0,0.00027397,2]
[341483543,1730921234382,-500.0,0.00027397,2]
[341483544,1730921234403,-500.0,0.00027397,2]
[341483545,1730921234425,-500.0,0.00027397,2]
[341483546,1730921234445,-500.0,0.00027397,2]
[341483547,1730921234466,-1014.7,0.00027397,2]
[341483548,1730921234487,-500.0,0.00027397,2]
[341483549,1730921234508,-500.0,0.00027397,2]
[341483550,1730921234529,-500.0,0.00027397,2]
[341483551,1730921234550,-500.0,0.00027397,2]
[341483552,1730921234570,-500.0,0.00027397,2]
[341483553,1730921234590,-500.0,0.00027397,2]
[341483554,1730921234618,-500.0,0.00027397,2]
[341483555,1730921234640,-500.0,0.00027397,2]
[341483556,1730921234660,-500.0,0.00027397,2]
[341483557,1730921234682,-500.0,0.00027397,2]
[341483558,1730921234703,-500.0,0.00027397,2]
[341483559,1730921234724,-686.75,0.00027397,2]
[341483560,1730921234746,-500.0,0.00027397,2]
[341483561,1730921234767,-500.0,0.00027397,2]
[341483562,1730921234787,-500.0,0.00027397,2]
[341483563,1730921234808,-500.0,0.00027397,2]
[341483564,1730921234833,-2552.86,0.00027397,2]
[341483565,1730921234858,-842.49,0.00027397,2]
[341483566,1730921234881,-500.0,0.00027397,2]
[341483567,1730921234904,-500.0,0.00027397,2]
[341483568,1730921234925,-513.01685678,0.00027397,2]
[341483569,1730921234945,-500.0,0.00027397,2]
[341483570,1730921234966,-500.0,0.00027397,2]
[341483571,1730921234987,-500.0,0.00027397,2]
[341483572,1730921235007,-633.73208349,0.00027397,2]
[341483573,1730921235027,-713.47,0.00027397,2]
[341483574,1730921235048,-500.0,0.00027397,2]
[341483575,1730921235068,-196.18488557,0.00027397,2]
[341483576,1730921235087,-500.0,0.00027397,2]
[341483577,1730921235108,-500.0,0.00027397,2]
[341483578,1730921235129,-500.0,0.00027397,2]
[341483579,1730921235150,-1977.91,0.00027397,2]
[341483580,1730921235170,-500.0,0.00027397,2]
[341483581,1730921235191,-639.14194474,0.00027397,2]
[341483582,1730921235211,-500.0,0.00027397,2]
[341483583,1730921235232,-500.0,0.00027397,2]
[341483584,1730921235253,-845.64,0.00027397,2]
[341483585,1730921235274,-500.0,0.00027397,2]
[341483586,1730921235294,-901.1,0.00027397,2]
[341483587,1730921235316,-500.0,0.00027397,2]
[341483588,1730921235337,-1401.3,0.00027397,2]
[341483589,1730921235360,-500.0,0.00027397,2]
[341483590,1730921235379,-686.95,0.00027397,2]
[341483591,1730921235400,-500.0,0.00027397,2]
[341483592,1730921235421,-562.65486297,0.00027397,2]
[341483593,1730921235442,-500.0,0.00027397,2]
[341483594,1730921235462,-256.67740018,0.00027397,2]
[341483595,1730921235483,-500.0,0.00027397,2]
[341483596,1730921235503,-500.0,0.00027397,2]
[341483597,1730921235524,-500.0,0.00027397,2]
[341483598,1730921235544,-500.0,0.00027397,2]
[341483599,1730921235565,-500.0,0.00027397,2]
[341483600,1730921235587,-500.0,0.00027397,2]
[341483601,1730921235609,-500.0,0.00027397,2]
[341483602,1730921235630,-500.0,0.00027397,2]
[341483603,1730921235651,-500.0,0.00027397,2]
[341483604,1730921235672,-500.0,0.00027397,2]
[341483605,1730921235692,-204.70736824,0.00027397,2]
[341483606,1730921235714,-500.0,0.00027397,2]
[341483607,1730921235735,-500.0,0.00027397,2]
[341483608,1730921235755,-500.0,0.00027397,2]
[341483609,1730921235776,-500.0,0.00027397,2]
[341483610,1730921235796,-500.0,0.00027397,2]
[341483611,1730921235818,-500.0,0.00027397,2]
[341483612,1730921235838,-500.0,0.00027397,2]
[341483613,1730921235859,-1091.85,0.00027397,2]
[341483614,1730921235878,-198.98980307,0.00027397,2]
[341483615,1730921236456,2399.89048791,0.000225,2]
[341483616,1730921237627,5210.72307672,0.00022,2]
[341483617,1730921237819,-24282.86892463,0.00022,2]
[341483618,1730921283525,410.42121988,0.00015,10]
[341483619,1730921318417,150.0,0.00020422,2]
[341483626,1730921348107,-7792.81977786,0.00022,2]
[341483627,1730921348128,-88855.49660214,0.00022,2]
[341483628,1730921349104,-49646.73924,0.00022,2]
[341483629,1730921351190,-2941.182958,0.00022,2]
[341483630,1730921372198,-6884.73716,0.00022,2]
[341483650,1730921431638,-2689.71812012,0.00022,2]
[341483651,1730921431650,-3767.2,0.00022,2]
[341483652,1730921431661,-78888.57381574,0.00022,2]
[341483653,1730921431671,-13446.37307873,0.00022,2]
[341483654,1730921431681,-750.9344042,0.00022,7]
[341483655,1730921431690,-2090.55432923,0.00023922,2]
[341483656,1730921431700,-225.25947085,0.00025,120]
[341483657,1730921431709,-637.98973465,0.00025,120]
[341483658,1730921431719,-3115.34279189,0.00025,60]
[341483659,1730921431728,-8768.71070578,0.00025,2]
[341483660,1730921431738,-951.02,0.00025,2]
[341483661,1730921431749,-194.7,0.000253,2]
[341483662,1730921431759,-300.0,0.00025978,2]
[341483663,1730921431768,-724.54460096,0.00026,30]
[341483664,1730921431779,-250.0,0.00026043,2]
[341483665,1730921431788,-230.9,0.00026075,120]
[341483666,1730921431799,-23900.0,0.00026105,2]
[341483667,1730921431808,-200.0,0.00026149,2]
[341483668,1730921431818,-150.0,0.00026509,2]
[341483669,1730921431827,-257.6,0.00026572,2]
[341483670,1730921431837,-500.0,0.000269,9]
[341483671,1730921431846,-674.21769566,0.00027,120]
[341483672,1730921431858,-508.1806079,0.00027,120]
[341483673,1730921431868,-299.296595,0.00027,120]
[341483674,1730921431877,-13438.32337221,0.00027297,2]
[341483675,1730921431887,-195.30146307,0.00027297,2]
[341483676,1730921431896,-500.0,0.00027373,2]
[341483677,1730921431906,-500.0,0.00027373,2]
[341483678,1730921431916,-202.13202661,0.00027373,2]
[341483679,1730921431925,-301.01019693,0.00027397,2]
[341483680,1730921431935,-500.0,0.00027397,2]
[341483681,1730921431945,-500.0,0.00027397,2]
[341483682,1730921431955,-500.0,0.00027397,2]
[341483683,1730921431965,-500.0,0.00027397,2]
[341483684,1730921431976,-500.0,0.00027397,2]
[341483685,1730921431985,-500.0,0.00027397,2]
[341483686,1730921431996,-500.0,0.00027397,2]
[341483687,1730921432006,-519.88895265,0.00027397,2]
[341483688,1730921432018,-500.0,0.00027397,2]
[341483689,1730921432027,-500.0,0.00027397,2]
[341483690,1730921432037,-745.47,0.00027397,2]
[341483691,1730921432048,-500.0,0.00027397,2]
[341483692,1730921432058,-500.0,0.00027397,2]